Cogmind - Beta 10.2 @@@ ROGUE MODE // 2021.12.25 @ 14:21:53 Player: SURFACESEEKER Result: Destroyed by D-53 Grenadier with Mini Grenade Launcher Performance ------------- Evolutions (1) 500 Regions Visited (3) 600 Robots Destroyed (12) 60 Value Destroyed (124) 124 Prototype IDs (0) 0 Alien Tech Used (0) 0 Bonus (0) 0 TOTAL SCORE: 1284 Bonus ------- None Cogmind --------- Core Integrity 0/400 Matter 251/300 Energy 100/100 System Corruption 4% Temperature Cool (0) Movement Core (300) Ox5 Location -9/Mines Parts ------- > --- POWER (1) -------- (None) > --- PROPULSION (2) --- (None) > --- UTILITY (4) ------ Large Storage Unit Seismic Analyzer > --- WEAPON (2) ------- (None) > --- INVENTORY (10) --- Seismic Analyzer Assault Rifle Light Assault Rifle Light Assault Rifle Makeshift Sword Peak State ------------ > --- POWER ------------ (None) > --- PROPULSION ------- Aluminum Leg Aluminum Leg > --- UTILITY ---------- Large Storage Unit Medium Matter Pod Improved Terrain Scanner Seismic Analyzer > --- WEAPON ----------- Light Cannon Makeshift Sword > --- INVENTORY -------- Seismic Analyzer Medium Laser Particle Gun Assault Rifle Light Assault Rifle Light Assault Rifle [Rating: 12] Favorites ----------- Power Ion Engine Engine Ion Engine Propulsion Aluminum Leg Leg Aluminum Leg Utility Improved Terrain Scanner Device Improved Terrain Scanner Storage Large Storage Unit Processor Seismic Analyzer Weapon Medium Laser Energy Gun Medium Laser Ballistic Gun Light Assault Rifle Ballistic Cannon Light Cannon Special Weapon Mining Laser Slashing Weapon Makeshift Sword Build | -11 -10 -9 -9 ------- Run | Scr Mat Mat Min Slots Evolved 2 | . . 2 . Power . | . . . . Propulsion . | . . . . Utility 2 | . . 2 . Weapon . | . . . . Parts Attached 19 | 8 4 4 3 Power 1 | 1 . . . Engine 1 | 1 . . . Core . | . . . . Reactor . | . . . . Propulsion 2 | 2 . . . Treads . | . . . . Leg 2 | 2 . . . Wheel . | . . . . Hover . | . . . . Flight . | . . . . Utility 7 | 3 1 3 . Device 3 | 1 1 1 . Storage 3 | 1 . 2 . Processor 1 | 1 . . . Hackware . | . . . . Protection . | . . . . Artifact . | . . . . Weapon 9 | 2 3 1 3 Energy Gun 4 | 1 1 . 2 Energy Cannon . | . . . . Ballistic Gun 2 | 1 1 . . Ballistic Cannon 1 | . . 1 . Launcher . | . . . . Special Weapon 1 | . 1 . . Impact Weapon . | . . . . Slashing Weapon 1 | . . . 1 Piercing Weapon . | . . . . Special Melee Weapon . | . . . . Unidentified Prototypes . | . . . . Parts Lost 9 | . 1 . 8 Power 1 | . . . 1 Propulsion 2 | . . . 2 Utility 3 | . 1 . 2 Weapon 3 | . . . 3 Highest Loss Streak 8 | . 1 . 8 Average Slot Usage (%) 94 | . 100 92 92 Engine 11 | . 14 11 9 Leg 23 | . 28 22 19 Device 11 | . 14 10 9 Storage 11 | . . 14 22 Processor 11 | . 14 11 11 Energy Gun 7 | . 14 4 1 Ballistic Gun 11 | . 13 11 9 Ballistic Cannon 4 | . . 6 9 Naked Turns . | . . . . Heaviest Build 29 | 13 10 29 29 Greatest Support 20 | 20 20 20 20 Greatest Overweight (x) 7 | . . 1 7 Average Overweight (x) . | . . 1 1 Largest Inventory Capacity 10 | 6 4 10 10 Average Capacity 7 | 5 4 10 10 Most Carried 7 | 4 4 7 6 Average Carried 2 | . 3 5 5 Final Capacity 10 | 4 4 10 10 Final Carried 6 | 4 4 6 5 Class Distribution -------------------- 100% | Mutant Dominant Class ---------------- Mutant | -10/Materials Mutant | -9/Materials Mutant | -9/Mines Resources | -11 -10 -9 -9 ----------- Run | Scr Mat Mat Min Matter Collected 378 | 300 21 57 . Remotely . | . . . . Salvage Created 293 | 170 64 57 2 Parts 19 | 11 4 4 . Haulers Intercepted . | . . . . Recyclers Shooed . | . . . . Parts Field Recycled . | . . . . Retrieved Matter . | . . . . Parts Self-Destructed . | . . . . Prevented . | . . . . Kills | -11 -10 -9 -9 ------- Run | Scr Mat Mat Min Combat Hostiles Destroyed 6 | . 3 1 2 Melee 1 | . . . 1 Guns 4 | . 3 . 1 Cannons 1 | . . 1 . Classes Destroyed 6 | 2 1 2 1 Worker 1 | . . 1 . Tunneler 6 | 5 1 . . Recycler 1 | 1 . . . Swarmer 3 | . 3 . . Sentry 1 | . . 1 . Assembled 2 | . . . 2 Best Kill Streak 2 | 2 2 2 1 Combat Bots Only 2 | . 2 1 1 Max Kills in Single Turn 2 | 1 2 1 1 Gunslinging . | . . . . Exploded . | . . . . Melee 1 | . . . 1 Uniques/NPCs Destroyed . | . . . . Combat | -11 -10 -9 -9 -------- Run | Scr Mat Mat Min Damage Taken 1293 | . 211 59 1023 Core 458 | . 43 14 401 Absorbed by Shields . | . . . . Core Remaining (%) 91 | 100 82 . . Volleys Fired 47 | 20 18 5 4 Largest 2 | 2 2 2 2 Hottest 150 | 70 150 55 115 Shots Fired 92 | 40 36 10 6 Gun 84 | 40 34 5 5 Cannon 6 | . . 5 1 Launcher . | . . . . Special 2 | . 2 . . Kinetic 48 | 20 16 10 2 Thermal 44 | 20 20 . 4 Explosive . | . . . . Electromagnetic . | . . . . Robot Hit Streak 8 | 8 2 3 2 Robot Miss Streak 6 | 3 6 3 4 Penetration Max . | . . . . Secondary Targets . | . . . . Shots Hit Robots 42 | 23 10 4 5 Core Hits 21 | 10 4 3 4 Critical Hits 1 | 1 . . . Critical Kills 1 | 1 . . . Critical Parts Destroyed . | . . . . Melee Attacks 3 | . . . 3 Impact . | . . . . Slashing 3 | . . . 3 Piercing . | . . . . Sneak Attacks . | . . . . Combat Hostiles . | . . . . Follow-up Attacks . | . . . . Damage Inflicted 599 | 234 132 111 122 Guns 447 | 234 132 41 40 Cannons 70 | . . 70 . Explosions . | . . . . Melee 82 | . . . 82 Ramming . | . . . . Kinetic 288 | 122 44 111 11 Thermal 229 | 112 88 . 29 Explosive . | . . . . Electromagnetic . | . . . . Impact . | . . . . Slashing 82 | . . . 82 Piercing . | . . . . Highest Corruption 4 | . . . 4 Average Corruption 4 | . . . 4 Corruption Purged . | . . . . Effects 1 | . . . 1 Message Errors 1 | . . . 1 Overload Shots . | . . . . Overflow Damage . | . . . . Projectiles . | . . . . Explosions . | . . . . Melee . | . . . . Knockbacks . | . . . . Impact . | . . . . Kinetic . | . . . . Secondary . | . . . . Self-Inflicted Damage . | . . . . Shots . | . . . . Rammed . | . . . . Targets Rammed . | . . . . Kicked . | . . . . Crushed . | . . . . Highest Temperature 142 | 100 142 4 48 Average Temperature 42 | 36 54 4 16 Received Heat Transfer 358 | . . 18 340 Siege Activations . | . . . . Robots Corrupted . | . . . . Combat Hostiles . | . . . . Parts Fried . | . . . . Impact Corruptions . | . . . . Robots Melted . | . . . . Combat Hostiles . | . . . . Parts Melted . | . . . . Heat Transferred 666 | 333 259 . 74 Parts Sabotaged . | . . . . Parts Stolen . | . . . . Parts Stripped . | . . . . Power Chain Reactions . | . . . . Missiles Intercepted . | . . . . Alert | -11 -10 -9 -9 ------- Run | Scr Mat Mat Min Peak Influence 128 | 15 128 103 5 Initial 53 | . 3 53 5 Average 32 | 7 72 56 4 Maximum Alert Level . | . . . . Low Security (%) 100 | 100 100 100 100 Level 1 . | . . . . Level 2 . | . . . . Level 3 . | . . . . Level 4 . | . . . . Level 5 . | . . . . High Security . | . . . . Max Security . | . . . . Squads Dispatched . | . . . . Investigation . | . . . . Extermination . | . . . . Reinforcement . | . . . . Assault . | . . . . Garrison . | . . . . Intercept . | . . . . Construction Impeded . | . . . . Haulers Reinforced . | . . . . Stealth | -11 -10 -9 -9 --------- Run | Scr Mat Mat Min Distress Signals . | . . . . Communications Jammed . | . . . . Distress Signals . | . . . . Times Spotted 22 | . 7 3 12 Peak Tracking Total 8 | . 3 1 8 Tactical Retreats 1 | . 1 . . Traps | -11 -10 -9 -9 ------- Run | Scr Mat Mat Min Traps Triggered . | . . . . Indirectly . | . . . . Trap Hack Attempts . | . . . . Triggered . | . . . . Disarmed . | . . . . Reprogrammed . | . . . . Reused . | . . . . Traps Extracted . | . . . . Installed . | . . . . Triggered . | . . . . Machines | -11 -10 -9 -9 ---------- Run | Scr Mat Mat Min Machines Disabled . | . . . . Max in Single Turn . | . . . . Machines Sabotaged . | . . . . Garrisons Compromised . | . . . . Overloaded Fab Kills . | . . . . Fab Network Shutdowns . | . . . . Hacking | -11 -10 -9 -9 --------- Run | Scr Mat Mat Min Machines Accessed 2 | . . 2 . Terminals 1 | . . 1 . Fabricators . | . . . . Repair Stations . | . . . . Recycling Units . | . . . . Scanalyzers 1 | . . 1 . Garrison Access . | . . . . Total Hacks 9 | . . 9 . Successful 7 | . . 7 . Failed 2 | . . 2 . Catastrophic . | . . . . Database Lockouts . | . . . . Manual 5 | . . 5 . Terminals 5 | . . 5 . Fabricators . | . . . . Repair Stations . | . . . . Recycling Units . | . . . . Scanalyzers 4 | . . 4 . Garrison Access . | . . . . Terminal Hacks . | . . . . Fabricator Hacks . | . . . . Repair Station Hacks . | . . . . Recycling Unit Hacks . | . . . . Scanalyzer 4 | . . 4 . Insert Component 2 | . . 2 . Analyze 2 | . . 2 . Garrison Access Hacks . | . . . . Unauthorized Hacks 3 | . . 3 . Terminals 3 | . . 3 . Track 1 | . . 1 . Assimilate 1 | . . 1 . Botnet 1 | . . 1 . Fabricators . | . . . . Repair Stations . | . . . . Recycling Units . | . . . . Scanalyzers . | . . . . Garrison Access . | . . . . Data Cores Recovered . | . . . . Used . | . . . . Hacking Detections 2 | . . 2 . Full Trace Events . | . . . . Feedback Events . | . . . . Feedback Blocked . | . . . . Robot Schematics Acquired . | . . . . Robots Built . | . . . . Matter . | . . . . Time . | . . . . Total Robot Build Rating . | . . . . Part Schematics Acquired 2 | . . 2 . Parts Built . | . . . . Matter . | . . . . Time . | . . . . Total Part Build Rating . | . . . . Parts Repaired . | . . . . Time . | . . . . Parts Recycled . | . . . . Recycled Matter . | . . . . Retrieved Matter . | . . . . Retrieved Components . | . . . . Parts Scanalyzed 2 | . . 2 . Part Schematics Acquired 2 | . . 2 . Parts Damaged . | . . . . Bothacking | -11 -10 -9 -9 ------------ Run | Scr Mat Mat Min Used RIF Installer . | . . . . Robots Hacked . | . . . . Non-combat . | . . . . Combat . | . . . . Robot Hacks Applied . | . . . . Relay Couplers Released . | . . . . Robots Rewired . | . . . . Allies Hacked . | . . . . Hacks Repelled . | . . . . Allies | -11 -10 -9 -9 -------- Run | Scr Mat Mat Min Total Allies . | . . . . Largest Group . | . . . . Highest-Rated Group . | . . . . Highest-Rated Ally . | . . . . Total Orders . | . . . . Ally Attacks . | . . . . Total Damage . | . . . . Kills . | . . . . Allies Corrupted . | . . . . Allies Melted . | . . . . Intel | -11 -10 -9 -9 ------- Run | Scr Mat Mat Min Robot Analysis Total . | . . . . Derelict Logs Recovered 1 | . . . 1 Drone Launches . | . . . . Drone Recoveries . | . . . . Exploration | -11 -10 -9 -9 ------------- Run | Scr Mat Mat Min Turns Passed 1958 | 841 357 539 221 Spaces Moved 858 | 237 163 334 124 Core 34 | 29 . . 5 Treads . | . . . . Legs 824 | 208 163 334 119 Wheels . | . . . . Hover . | . . . . Flight . | . . . . Fastest Speed 50 | 50 120 150 150 Average Speed 134 | 111 120 150 158 Slowest Speed 400 | 120 120 150 400 Overloaded Moves . | . . . . Propulsion Burnouts . | . . . . Robots Hopped . | . . . . Cave-ins Triggered . | . . . . Exploration Rate (%) 20 | 13 20 16 31 Regions Visited 3 Branch Regions 1 Pre-discovered Areas . | . . . . Known Exits Taken . | . . . . Unknown Exits Taken 3 | 1 1 1 . Scrap Searched . | . . . . Spaces Dug 2 | . 2 . . Terrain Destroyed 3 | . 2 . 1 Melee . | . . . . Projectile 3 | . 2 . 1 AOE . | . . . . Terrain Rammed . | . . . . Walls Destroyed . | . . . . Machines Disabled . | . . . . Actions | -11 -10 -9 -9 --------- Run | Scr Mat Mat Min Total 1565 | 777 286 363 139 Wait 618 | 502 99 14 3 Move 855 | 236 162 333 124 Hop . | . . . . Pick Up 19 | 11 2 5 1 Fast Attach . | . . . . Attach 12 | 7 1 3 1 Detach 1 | . . 1 . Swap 7 | 1 3 1 2 Drop 3 | . 1 1 1 Fire 47 | 20 18 5 4 Melee 3 | . . . 3 Ram . | . . . . Kick . | . . . . Crush . | . . . . Escape Stasis . | . . . . Rewire . | . . . . Trap . | . . . . Miscellaneous . | . . . . Route ------- -11/Scrapyard -10/Materials -9/Materials -9/Mines History --------- Turn | Location | Event 20 | -11/Scrapyard | Discovered new exit (range 15) 842 | -11/Scrapyard | Entered Materials 843 | -10/Materials | Build established: Mutant 1189 | -10/Materials | Discovered new exit (range 3) 1199 | -10/Materials | Entered another Materials area 1199 | -9/Materials | Evolved 2 slots: Utility x2 1368 | -9/Materials | Discovered new exit (range 16) 1738 | -9/Materials | Entered Mines 1788 | -9/Mines | Learned 4 Materials zone layouts 1840 | -9/Mines | A weapon hastily lodged in a ceiling crevice suddenly fell to the ground 1903 | -9/Mines | Assembled infested the area 1905 | -9/Mines | YI-UF0 nonchalantly dropped a Grenade Launcher on the ground 1931 | -9/Mines | Core integrity fell below 50% 1949 | -9/Mines | Core integrity fell below 20% 1956 | -9/Mines | Met 8R-AWN 1959 | -9/Mines | Destroyed by D-53 Grenadier with Mini Grenade Launcher Last Messages --------------- 01953_ Med. Laser destroyed. 01953_ as-04598 destroyed. 01954_ U-05 Engineer lays Concrete. 01955_ U-05 Engineer builds a Wall. 01956_ U-05 Engineer lays Concrete. 01956_ HV Slug penetrates Wall. 01956_ HV Slug penetrates Earth. 01956_ HV Slug penetrates Wall. 01956_ as-17519 destroyed. 8R-AWN: Hm, I'm not getting any readings that show these Assembled are different than what we have already... But you... you look interesting. Maybe they'll want to see you. Come along little bot, it's safer with us than out here, anyway. 01958_ as-57015 destroyed. 01958_ U-05 Engineer lays Concrete. 01958_ HV Slug penetrates Wall. 01958_ HV Slug penetrates Earth. 01959_ The unstable cave ceiling collapses. 01959_ U-05 Engineer lays Concrete. 01959_ Med. Matter Pod destroyed. Map ----- +----------------------------------------------------+ | ???????????????####???# #### #######?#??????? | | ?????????????? ???#???# ##??###????? | | ?????????? ?? ? ?? ???###### ##????##??? | | ????????????????? ##???#### #?#???##?? | | ?????????????? ? ? ###?#?### ##?????#?? | | ??????????????? ? #??##### ###???????? | | ??????????????? ? #### ##?##?#???#? | | ?????????????????##??# ###?#?#?##??? | | ??????????????????#### ##???##??#??? | | ????????????????##???# ##???#?????? | | ??????????????#???#### #???#??????? | | ???????????#??????#### ##?#???????? | | ???????????????????#### ###?#?#?????? | | ??????????????????#???## #???????????? | | ?????????????????#?##??# #???#???????? | | ?????????????????###???# ### #?##???#????? | | ???????????? ?? ???#??## r##??# #?#?###????? | | ??????????#???? ?????# #?#?? ##???????? | | ?????????????#???????## ##?#? #???????? | | ???????????#?##?????## ##?? ##??????? | | ??????????#?#?# ??#?## r ##?# ##??#????? | | ???????????##??# ??## #??#######????????? | | ?????????????#?# #### #??#????#????#??#?? | | ???????????????# ## ##??#?#???#?#??????? | | ??????????????## ##?#??##???#???#???? | | ????????????#?### @ ##????#?#?????????? | | ????????? ?##???## u # ####??#?###??????? | | ????????????#?##?# ### ####????????##??? | | ????????? ?#??##?# ## ##??##?#?????# | | ???????????#??#??# ### ## #?#??????? | | ?????????????#?#?# " d ##???#?#?? | | ????????????????##%### ud %% #????#??? | | ????????????? ?### ### ##?#?????? | | ????????? ?? ???##% ## #???#???? | | ???????????????# ## # ##??##???? | | ?????????????? #### ###? $ ??????? | | ????????????? % ?### ##??? ?## #????? | | ??????????? = #??? ###????#?#? ?#???? | | ??????????? ? ??#####????#?? ????????? | | ??????????# ?? ??????#???##?????#??#?? | | ??????????## ?? #?#?#???##???????????? | | ??????????### ?????#?##?#?????????????? | | ????????????# ### ?????????????#?#? ?????? | | ???????????? #?#?# ???#????????#???????????? | | ??????????????? ?????#????????????????????????? | | ???????????????#??#????????#??????????????????? | | ??????????????????????#??#????#???????????????? | | ??????????????????????????????????????????????? | | ??????????????????????????????????????????????? | | ??????????????????????????????????????????????? | +----------------------------------------------------+ Best States ------------- Heat Dissipation 28 Energy Generation 10 Energy Capacity 250 Matter Stores 300 Matter Capacity 400 Sight Range 16 Terrain Scan Range 16 Terrain Scan Density 60 Evasion (%) 50 Item Schematics ----------------- Imp. Terrain Scanner | -9/Materials | Scanalyzed Seismic Analyzer | -9/Materials | Scanalyzed Robot Schematics ------------------ None Fabricated ------------ Nothing Alien Tech Used ----------------- None Achievements -------------- None Challenges ------------ None Game ------ Seed QuantumTeslaMinigun Manual? 0 Play Time 00:18:36 Cumulative 110.5 hours Start 2021.12.22 @ 15:25:28 End 2021.12.25 @ 14:21:53 Sessions 2 Manual Loads 0 Difficulty Rogue Special Mode None Game No. 92 Rogue 92 Adventurer 0 Explorer 0 Win Type - Total 0 Types 0/0/0/0/0/0/0/0/0 Lore% 32 Gallery% 52 Achievement% 32 Wizard Run 0 Options --------- ASCII 0 Keyboard 0 Movement Arrows Keybinds 0 Fullscreen 1 Font 14/Terminus Map View 72x54 Tactical HUD 1 Map Filters NONE Filters NONE Steam 1 RUN: a0dd7e0c-33fb-4ee7-a035-bf5457158d6d